[Event "Early-Titled-Tuesday-Blitz-July-09-2024"]
[Site "Chess.com"]
[Date "2024.07.09"]
[Round "7"]
[White "pouya21"]
[Black "annasargsyan_m"]
[Result "1-0"]
[WhiteElo "2867"]
[BlackElo "2656"]
[TimeControl "180+1"]
[EndTime "9:19:30 PDT"]
[Termination "pouya21 won by resignation"]

1. b3 {[%clk 0:03:00.9]} 1... Nf6 {[%clk 0:02:54.9]} 2. Bb2 {[%clk 0:03:01.8]}
2... g6 {[%clk 0:02:55.2]} 3. Nf3 {[%clk 0:03:00.7]} 3... Bg7 {[%clk 0:02:55.8]}
4. c4 {[%clk 0:03:00.2]} 4... O-O {[%clk 0:02:56.4]} 5. g3 {[%clk 0:03:00.8]}
5... c5 {[%clk 0:02:56.6]} 6. Bg2 {[%clk 0:03:00.7]} 6... Nc6 {[%clk 0:02:56]}
7. O-O {[%clk 0:03:00.9]} 7... d6 {[%clk 0:02:56.7]} 8. d4 {[%clk 0:02:57]} 8...
cxd4 {[%clk 0:02:57.6]} 9. Nxd4 {[%clk 0:02:56.8]} 9... Bd7 {[%clk 0:02:57.7]}
10. Nc3 {[%clk 0:02:55.5]} 10... Rc8 {[%clk 0:02:58.2]} 11. e3 {[%clk
0:02:51.1]} 11... Re8 {[%clk 0:02:54.2]} 12. Qd2 {[%clk 0:02:48.8]} 12... a6
{[%clk 0:02:50.2]} 13. Nde2 {[%clk 0:02:38.8]} 13... Bf5 {[%clk 0:02:38.7]} 14.
h3 {[%clk 0:02:28.2]} 14... Qd7 {[%clk 0:02:38.1]} 15. g4 {[%clk 0:02:27.6]}
15... Be6 {[%clk 0:02:34.9]} 16. Nf4 {[%clk 0:02:26.8]} 16... h5 {[%clk
0:02:31.2]} 17. g5 {[%clk 0:02:16.4]} 17... Nh7 {[%clk 0:02:23]} 18. Nxe6 {[%clk
0:02:12.5]} 18... Qxe6 {[%clk 0:02:23.9]} 19. f4 {[%clk 0:02:10.8]} 19... Nf8
{[%clk 0:02:18.1]} 20. Kh2 {[%clk 0:02:07.8]} 20... Qd7 {[%clk 0:02:13.7]} 21.
Rad1 {[%clk 0:02:04.7]} 21... Rcd8 {[%clk 0:02:09.7]} 22. Nd5 {[%clk 0:02:00.7]}
22... Ne6 {[%clk 0:02:04.1]} 23. e4 {[%clk 0:01:51.3]} 23... Ned4 {[%clk
0:01:58]} 24. Qf2 {[%clk 0:01:45.4]} 24... e5 {[%clk 0:01:57.4]} 25. f5 {[%clk
0:01:42.5]} 25... b5 {[%clk 0:01:49.1]} 26. Nf6+ {[%clk 0:01:23.4]} 26... Bxf6
{[%clk 0:01:48.1]} 27. gxf6 {[%clk 0:01:24.3]} 27... Kh7 {[%clk 0:01:34.3]} 28.
Qh4 {[%clk 0:01:21.9]} 28... Rg8 {[%clk 0:01:29.2]} 29. Qg5 {[%clk 0:01:09.3]}
29... Qe8 {[%clk 0:01:15.2]} 30. Bc1 {[%clk 0:01:07.8]} 30... Qf8 {[%clk
0:01:15.8]} 31. fxg6+ {[%clk 0:00:54.7]} 31... Rxg6 {[%clk 0:01:15.4]} 32. Qxh5+
{[%clk 0:00:54.7]} 32... Kg8 {[%clk 0:01:16.1]} 33. Bh1 {[%clk 0:00:49.3]} 33...
Ne6 {[%clk 0:00:20.5]} 34. Rg1 {[%clk 0:00:47.7]} 34... Qe8 {[%clk 0:00:21.2]}
35. Qh6 {[%clk 0:00:25.5]} 35... Ncd4 {[%clk 0:00:17]} 36. Rxg6+ {[%clk
0:00:25.5]} 36... fxg6 {[%clk 0:00:17.1]} 37. Rg1 {[%clk 0:00:26.2]} 1-0

[Event "Early-Titled-Tuesday-Blitz-July-09-2024"]
[Site "Chess.com"]
[Date "2024.07.09"]
[Round "7"]
[White "mind1mover"]
[Black "ChessFighter_2011"]
[Result "0-1"]
[WhiteElo "2822"]
[BlackElo "2955"]
[TimeControl "180+1"]
[EndTime "9:19:31 PDT"]
[Termination "ChessFighter_2011 won on time"]

1. c4 {[%clk 0:03:00.9]} 1... Nf6 {[%clk 0:02:55.9]} 2. Nc3 {[%clk 0:03:00.1]}
2... g6 {[%clk 0:02:55.7]} 3. d4 {[%clk 0:02:59.4]} 3... Bg7 {[%clk 0:02:55.2]}
4. e4 {[%clk 0:02:59.6]} 4... d6 {[%clk 0:02:55.6]} 5. Be2 {[%clk 0:03:00]} 5...
O-O {[%clk 0:02:54.7]} 6. Be3 {[%clk 0:03:00.2]} 6... Nc6 {[%clk 0:02:51.6]} 7.
d5 {[%clk 0:02:56.8]} 7... Ne5 {[%clk 0:02:51.6]} 8. f4 {[%clk 0:02:57.5]} 8...
Neg4 {[%clk 0:02:51.5]} 9. Bd2 {[%clk 0:02:57]} 9... Nh6 {[%clk 0:02:51.9]} 10.
h3 {[%clk 0:02:35.2]} 10... e6 {[%clk 0:02:25.2]} 11. dxe6 {[%clk 0:02:29.3]}
11... fxe6 {[%clk 0:02:25.3]} 12. Qc2 {[%clk 0:02:18.6]} 12... Nf7 {[%clk
0:02:23]} 13. O-O-O {[%clk 0:02:15.2]} 13... Qe7 {[%clk 0:02:23.1]} 14. g4
{[%clk 0:02:05.6]} 14... b5 {[%clk 0:02:07.5]} 15. Nxb5 {[%clk 0:01:52]} 15...
Bb7 {[%clk 0:01:58]} 16. Bf3 {[%clk 0:01:51.7]} 16... Nd7 {[%clk 0:01:53.4]} 17.
Ne2 {[%clk 0:01:29.4]} 17... Nc5 {[%clk 0:01:14.8]} 18. Bc3 {[%clk 0:01:08.3]}
18... Ng5 {[%clk 0:01:05.5]} 19. Bxg7 {[%clk 0:00:32.9]} 19... Qxg7 {[%clk
0:01:04.3]} 20. fxg5 {[%clk 0:00:20.4]} 20... Rxf3 {[%clk 0:01:03.5]} 21. Nec3
{[%clk 0:00:21]} 21... Raf8 {[%clk 0:00:56.7]} 22. h4 {[%clk 0:00:17.6]} 22...
R3f4 {[%clk 0:00:41.4]} 23. h5 {[%clk 0:00:08.5]} 23... Nxe4 {[%clk 0:00:40.2]}
24. hxg6 {[%clk 0:00:08.8]} 24... hxg6 {[%clk 0:00:39.2]} 25. Rh6 {[%clk
0:00:08.3]} 25... Rf2 {[%clk 0:00:34.2]} 26. Qd3 {[%clk 0:00:07.4]} 26... R8f3
{[%clk 0:00:33.8]} 27. Qd4 {[%clk 0:00:02.2]} 27... Qxd4 {[%clk 0:00:32.7]} 28.
Nxd4 {[%clk 0:00:02.8]} 28... Nxc3 {[%clk 0:00:33.1]} 29. bxc3 {[%clk
0:00:03.5]} 29... Rxc3+ {[%clk 0:00:34]} 30. Kb1 {[%clk 0:00:04.2]} 30... Be4+
{[%clk 0:00:33.2]} 31. Ka1 {[%clk 0:00:04.8]} 31... Ra3 {[%clk 0:00:33]} 0-1

[Event "Early-Titled-Tuesday-Blitz-July-09-2024"]
[Site "Chess.com"]
[Date "2024.07.09"]
[Round "7"]
[White "Stanbad1"]
[Black "bubeliang"]
[Result "1-0"]
[WhiteElo "2623"]
[BlackElo "2803"]
[TimeControl "180+1"]
[EndTime "9:19:31 PDT"]
[Termination "Stanbad1 won by resignation"]

1. d4 {[%clk 0:03:00.9]} 1... d5 {[%clk 0:02:59.7]} 2. Nc3 {[%clk 0:03:00.3]}
2... Nf6 {[%clk 0:02:51.2]} 3. Bf4 {[%clk 0:03:00.7]} 3... a6 {[%clk 0:02:51.4]}
4. e3 {[%clk 0:03:00.5]} 4... b5 {[%clk 0:02:50.8]} 5. Bd3 {[%clk 0:02:52.3]}
5... e6 {[%clk 0:02:49]} 6. a4 {[%clk 0:02:52]} 6... b4 {[%clk 0:02:47]} 7. Nb1
{[%clk 0:02:51.2]} 7... c5 {[%clk 0:02:46.9]} 8. dxc5 {[%clk 0:02:51.4]} 8...
Bxc5 {[%clk 0:02:47.5]} 9. Nd2 {[%clk 0:02:51.9]} 9... Nc6 {[%clk 0:02:47.2]}
10. Ngf3 {[%clk 0:02:51.9]} 10... Bd6 {[%clk 0:02:47]} 11. Bxd6 {[%clk
0:02:51.4]} 11... Qxd6 {[%clk 0:02:47.9]} 12. Qe2 {[%clk 0:02:51.6]} 12... O-O
{[%clk 0:02:47.6]} 13. e4 {[%clk 0:02:51.7]} 13... e5 {[%clk 0:02:36.3]} 14. O-O
{[%clk 0:02:41]} 14... Bg4 {[%clk 0:02:33]} 15. exd5 {[%clk 0:02:33.1]} 15...
Nd4 {[%clk 0:02:32.1]} 16. Qxe5 {[%clk 0:02:03.9]} 16... Nxf3+ {[%clk
0:02:16.3]} 17. Nxf3 {[%clk 0:02:02]} 17... Qxd5 {[%clk 0:02:16.7]} 18. Qxd5
{[%clk 0:02:01.2]} 18... Nxd5 {[%clk 0:02:17.6]} 19. Ne5 {[%clk 0:02:01.8]}
19... Be6 {[%clk 0:02:16.7]} 20. Rfe1 {[%clk 0:02:00.9]} 20... g6 {[%clk
0:02:13.5]} 21. Rad1 {[%clk 0:01:59.5]} 21... a5 {[%clk 0:02:06.9]} 22. Be4
{[%clk 0:01:56.2]} 22... Nb6 {[%clk 0:01:34.4]} 23. Bxa8 {[%clk 0:01:54.3]}
23... Rxa8 {[%clk 0:01:35.3]} 24. b3 {[%clk 0:01:54.1]} 24... Rc8 {[%clk
0:01:35]} 25. Rd2 {[%clk 0:01:53]} 25... Bf5 {[%clk 0:01:33.7]} 26. Ree2 {[%clk
0:01:46.7]} 26... Rc5 {[%clk 0:01:32.4]} 27. g4 {[%clk 0:01:43.9]} 27... Be6
{[%clk 0:01:31.7]} 28. h3 {[%clk 0:01:42.4]} 28... Nd5 {[%clk 0:01:31.5]} 29.
Re4 {[%clk 0:01:30.4]} 29... Nc3 {[%clk 0:01:20]} 30. Re1 {[%clk 0:01:26.7]}
30... g5 {[%clk 0:01:19.8]} 31. Nd7 {[%clk 0:01:16.4]} 31... Rc6 {[%clk
0:00:40.5]} 32. Nf6+ {[%clk 0:01:14.8]} 32... Kg7 {[%clk 0:00:41.1]} 33. Ne4
{[%clk 0:01:14.6]} 33... Nxe4 {[%clk 0:00:41.8]} 34. Rxe4 {[%clk 0:01:14.6]}
34... Kf6 {[%clk 0:00:41.9]} 35. f4 {[%clk 0:01:12.5]} 35... Rc3 {[%clk
0:00:36.4]} 36. Kh2 {[%clk 0:01:09.5]} 36... h5 {[%clk 0:00:31.5]} 37. fxg5+
{[%clk 0:01:08.6]} 37... Kxg5 {[%clk 0:00:31.7]} 38. Re5+ {[%clk 0:01:08.9]}
38... Kf4 {[%clk 0:00:31.5]} 39. Rxh5 {[%clk 0:01:08.6]} 39... Ke3 {[%clk
0:00:32.4]} 40. Rg2 {[%clk 0:01:07.3]} 40... Bd7 {[%clk 0:00:31.7]} 41. Rxa5
{[%clk 0:01:05.1]} 41... Bc6 {[%clk 0:00:32.3]} 42. Rg3+ {[%clk 0:01:03.7]}
42... Kd2 {[%clk 0:00:32.6]} 43. Rxc3 {[%clk 0:01:04]} 43... bxc3 {[%clk
0:00:32.4]} 44. Rc5 {[%clk 0:01:04]} 44... Be4 {[%clk 0:00:32.3]} 45. a5 {[%clk
0:00:59.4]} 45... Kxc2 {[%clk 0:00:30.3]} 46. h4 {[%clk 0:00:59.8]} 46... Kxb3
{[%clk 0:00:27.1]} 47. a6 {[%clk 0:01:00.2]} 47... Kb4 {[%clk 0:00:23.6]} 48.
Rc7 {[%clk 0:00:59.7]} 48... c2 {[%clk 0:00:20.8]} 49. h5 {[%clk 0:00:59.3]}
49... Kb3 {[%clk 0:00:20.3]} 50. h6 {[%clk 0:00:59.4]} 50... Bd5 {[%clk
0:00:19.7]} 51. Rxc2 {[%clk 0:00:54]} 51... Kxc2 {[%clk 0:00:20.6]} 52. h7
{[%clk 0:00:54.2]} 52... Be4 {[%clk 0:00:21]} 53. h8=Q {[%clk 0:00:54.3]} 53...
Bg6 {[%clk 0:00:21.9]} 54. a7 {[%clk 0:00:54]} 1-0

[Event "Early-Titled-Tuesday-Blitz-July-09-2024"]
[Site "Chess.com"]
[Date "2024.07.09"]
[Round "7"]
[White "tusplingher"]
[Black "dapsay"]
[Result "1/2-1/2"]
[WhiteElo "2689"]
[BlackElo "2572"]
[TimeControl "180+1"]
[EndTime "9:19:33 PDT"]
[Termination "Game drawn by repetition"]

1. e4 {[%clk 0:03:00.9]} 1... c5 {[%clk 0:02:56.5]} 2. Nf3 {[%clk 0:02:59.2]}
2... e6 {[%clk 0:02:56.6]} 3. d4 {[%clk 0:02:59.3]} 3... cxd4 {[%clk 0:02:57.3]}
4. Nxd4 {[%clk 0:02:59.6]} 4... a6 {[%clk 0:02:57.9]} 5. Bd3 {[%clk 0:02:58.6]}
5... Bc5 {[%clk 0:02:56.9]} 6. Nb3 {[%clk 0:02:58]} 6... Ba7 {[%clk 0:02:57.1]}
7. Qg4 {[%clk 0:02:56.6]} 7... Nf6 {[%clk 0:02:57.1]} 8. Qe2 {[%clk 0:02:53.1]}
8... d6 {[%clk 0:02:56.5]} 9. Be3 {[%clk 0:02:52.2]} 9... O-O {[%clk 0:02:55.9]}
10. O-O {[%clk 0:02:51.4]} 10... Nc6 {[%clk 0:02:55.6]} 11. c4 {[%clk
0:02:50.9]} 11... Qc7 {[%clk 0:02:55]} 12. Nc3 {[%clk 0:02:50]} 12... e5 {[%clk
0:02:52.6]} 13. Bxa7 {[%clk 0:02:49.4]} 13... Rxa7 {[%clk 0:02:52.3]} 14. Rac1
{[%clk 0:02:49]} 14... Re8 {[%clk 0:02:38.9]} 15. Nd5 {[%clk 0:02:48.1]} 15...
Qd8 {[%clk 0:02:39.1]} 16. Rfd1 {[%clk 0:02:46.4]} 16... Ra8 {[%clk 0:02:38.5]}
17. c5 {[%clk 0:02:42.3]} 17... Nd4 {[%clk 0:02:33.1]} 18. Nxd4 {[%clk
0:02:38.8]} 18... exd4 {[%clk 0:02:34]} 19. Nxf6+ {[%clk 0:02:34.8]} 19... Qxf6
{[%clk 0:02:33.8]} 20. cxd6 {[%clk 0:02:32.7]} 20... Qxd6 {[%clk 0:02:33.1]} 21.
Bb1 {[%clk 0:02:27.3]} 21... Be6 {[%clk 0:02:28.9]} 22. Rd2 {[%clk 0:02:25]}
22... Red8 {[%clk 0:02:25.5]} 23. Rcd1 {[%clk 0:02:24.9]} 23... Rac8 {[%clk
0:02:15.6]} 24. h3 {[%clk 0:02:18.4]} 24... Qb4 {[%clk 0:02:12.6]} 25. Qd3
{[%clk 0:02:06.4]} 25... g6 {[%clk 0:02:07.7]} 26. Qe2 {[%clk 0:01:50.6]} 26...
Qa4 {[%clk 0:02:07]} 27. b3 {[%clk 0:01:46.7]} 27... Qb4 {[%clk 0:02:07]} 28. e5
{[%clk 0:01:44.7]} 28... Rc3 {[%clk 0:02:06]} 29. Be4 {[%clk 0:01:38.4]} 29...
b5 {[%clk 0:02:05.6]} 30. Rd3 {[%clk 0:01:31.2]} 30... a5 {[%clk 0:02:05.5]} 31.
Rxc3 {[%clk 0:01:29]} 31... Qxc3 {[%clk 0:02:05.9]} 32. Qxb5 {[%clk 0:01:28.2]}
32... d3 {[%clk 0:02:05.8]} 33. Rxd3 {[%clk 0:01:15.9]} 33... Qa1+ {[%clk
0:02:03.2]} 34. Kh2 {[%clk 0:01:14.7]} 34... Rxd3 {[%clk 0:02:03.7]} 35. Bxd3
{[%clk 0:01:13.4]} 35... Qxa2 {[%clk 0:02:04.4]} 36. Bc4 {[%clk 0:01:05]} 36...
Bxc4 {[%clk 0:01:55.3]} 37. bxc4 {[%clk 0:01:03.4]} 37... a4 {[%clk 0:01:56]}
38. c5 {[%clk 0:01:02.6]} 38... Qxf2 {[%clk 0:01:52.9]} 39. c6 {[%clk 0:00:56]}
39... Qf4+ {[%clk 0:01:52.2]} 40. g3 {[%clk 0:00:47.6]} 40... Qf2+ {[%clk
0:01:51.2]} 41. Kh1 {[%clk 0:00:48]} 41... Qe1+ {[%clk 0:01:46.1]} 42. Kg2
{[%clk 0:00:47.1]} 42... Qd2+ {[%clk 0:01:45.7]} 43. Kf3 {[%clk 0:00:44.6]}
43... a3 {[%clk 0:01:45.9]} 44. Qb8+ {[%clk 0:00:38]} 44... Kg7 {[%clk
0:01:45.2]} 45. c7 {[%clk 0:00:38.7]} 45... Qc3+ {[%clk 0:01:44.1]} 46. Ke2
{[%clk 0:00:36.9]} 46... Qxe5+ {[%clk 0:01:42.7]} 47. Kd3 {[%clk 0:00:36.9]}
47... a2 {[%clk 0:01:42.3]} 48. c8=Q {[%clk 0:00:33.1]} 48... Qxb8 {[%clk
0:01:37]} 49. Qxb8 {[%clk 0:00:33.5]} 49... a1=Q {[%clk 0:01:37.3]} 50. Ke2
{[%clk 0:00:32.9]} 50... Qc3 {[%clk 0:01:34]} 51. Kf2 {[%clk 0:00:32]} 51... h5
{[%clk 0:01:34.4]} 52. Kg2 {[%clk 0:00:28.8]} 52... Qd2+ {[%clk 0:01:34.1]} 53.
Kg1 {[%clk 0:00:28.3]} 53... Qe1+ {[%clk 0:01:33.9]} 54. Kg2 {[%clk 0:00:28.4]}
54... Qe2+ {[%clk 0:01:34]} 55. Kg1 {[%clk 0:00:28.5]} 55... h4 {[%clk
0:01:34.1]} 56. gxh4 {[%clk 0:00:28.1]} 56... Qd1+ {[%clk 0:01:33.3]} 57. Kg2
{[%clk 0:00:27.7]} 57... Qd2+ {[%clk 0:01:33.3]} 58. Kg1 {[%clk 0:00:26.1]}
58... Qd4+ {[%clk 0:01:33.3]} 59. Kg2 {[%clk 0:00:26]} 59... Qxh4 {[%clk
0:01:33.9]} 60. Qe5+ {[%clk 0:00:25.2]} 60... Qf6 {[%clk 0:01:32.5]} 61. Qe4
{[%clk 0:00:25.3]} 61... Qg5+ {[%clk 0:01:32.3]} 62. Kh2 {[%clk 0:00:23.5]}
62... f6 {[%clk 0:01:31.4]} 63. Qe7+ {[%clk 0:00:23.4]} 63... Kh6 {[%clk
0:01:30.6]} 64. Qf8+ {[%clk 0:00:22.8]} 64... Kh5 {[%clk 0:01:30.8]} 65. Qh8+
{[%clk 0:00:22.1]} 65... Qh6 {[%clk 0:01:31.1]} 66. Qxf6 {[%clk 0:00:22.2]}
66... Qd2+ {[%clk 0:01:31.7]} 67. Kg3 {[%clk 0:00:21.5]} 67... Qe3+ {[%clk
0:01:31.8]} 68. Kg2 {[%clk 0:00:20.4]} 68... Qe2+ {[%clk 0:01:32]} 69. Kg3
{[%clk 0:00:20.6]} 69... Qe3+ {[%clk 0:01:32.1]} 70. Kg2 {[%clk 0:00:21]} 70...
Qe2+ {[%clk 0:01:32.1]} 71. Kg3 {[%clk 0:00:21.4]} 71... Qe3+ {[%clk 0:01:32.6]}
1/2-1/2

[Event "Early-Titled-Tuesday-Blitz-July-09-2024"]
[Site "Chess.com"]
[Date "2024.07.09"]
[Round "7"]
[White "IC3S2"]
[Black "anderson2361"]
[Result "1-0"]
[WhiteElo "2546"]
[BlackElo "2189"]
[TimeControl "180+1"]
[EndTime "9:19:36 PDT"]
[Termination "IC3S2 won by resignation"]

1. e4 {[%clk 0:03:00.9]} 1... c5 {[%clk 0:02:59.6]} 2. Nc3 {[%clk 0:03:00.8]}
2... Nc6 {[%clk 0:02:58]} 3. Bb5 {[%clk 0:03:00.3]} 3... Nd4 {[%clk 0:02:57.9]}
4. Nf3 {[%clk 0:03:00.8]} 4... a6 {[%clk 0:02:57]} 5. Bd3 {[%clk 0:03:00.1]}
5... Nc6 {[%clk 0:02:57.2]} 6. O-O {[%clk 0:02:59.1]} 6... g6 {[%clk 0:02:57.6]}
7. e5 {[%clk 0:02:59.4]} 7... Bg7 {[%clk 0:02:57.2]} 8. Re1 {[%clk 0:02:59.9]}
8... e6 {[%clk 0:02:50.8]} 9. Ne4 {[%clk 0:02:55.3]} 9... d5 {[%clk 0:02:29.2]}
10. exd6 {[%clk 0:02:44.9]} 10... Nf6 {[%clk 0:02:24]} 11. Nxc5 {[%clk
0:02:44.3]} 11... Qxd6 {[%clk 0:02:23.5]} 12. Ne4 {[%clk 0:02:44.9]} 12... Nxe4
{[%clk 0:02:23.5]} 13. Bxe4 {[%clk 0:02:45.8]} 13... O-O {[%clk 0:02:22.8]} 14.
c3 {[%clk 0:02:46.3]} 14... f5 {[%clk 0:02:22.7]} 15. Bc2 {[%clk 0:02:46]} 15...
e5 {[%clk 0:02:23.2]} 16. d4 {[%clk 0:02:30.1]} 16... e4 {[%clk 0:02:21.3]} 17.
Ng5 {[%clk 0:02:27.5]} 17... Kh8 {[%clk 0:02:16.6]} 18. f3 {[%clk 0:02:20.7]}
18... h6 {[%clk 0:02:13.3]} 19. Nh3 {[%clk 0:02:20.4]} 19... exf3 {[%clk
0:02:08.6]} 20. Qxf3 {[%clk 0:02:21.3]} 20... b5 {[%clk 0:02:02.1]} 21. Nf4
{[%clk 0:01:58.9]} 21... Bb7 {[%clk 0:01:55.7]} 22. Re6 {[%clk 0:01:52.4]} 22...
Qd7 {[%clk 0:01:30.4]} 23. Nxg6+ {[%clk 0:01:49.2]} 23... Kg8 {[%clk 0:01:30.3]}
24. Nxf8 {[%clk 0:01:49.5]} 24... Rxf8 {[%clk 0:01:27.1]} 25. Qf2 {[%clk
0:00:49.7]} 25... Nxd4 {[%clk 0:01:04.8]} 26. cxd4 {[%clk 0:00:40.9]} 26... Qxe6
{[%clk 0:01:03.5]} 27. Bf4 {[%clk 0:00:30.8]} 27... Rd8 {[%clk 0:00:51.4]} 28.
Bb3 {[%clk 0:00:26.7]} 28... Bd5 {[%clk 0:00:50.4]} 29. Re1 {[%clk 0:00:25.3]}
29... Qf7 {[%clk 0:00:49.2]} 30. Be5 {[%clk 0:00:22.1]} 30... Bxb3 {[%clk
0:00:35.4]} 31. axb3 {[%clk 0:00:21.9]} 31... Re8 {[%clk 0:00:31.9]} 32. Qg3
{[%clk 0:00:20]} 32... Kh7 {[%clk 0:00:28.2]} 33. h3 {[%clk 0:00:19.3]} 33... f4
{[%clk 0:00:24.9]} 34. Qd3+ {[%clk 0:00:16.9]} 34... Qg6 {[%clk 0:00:19.6]} 35.
Qxg6+ {[%clk 0:00:14.9]} 35... Kxg6 {[%clk 0:00:19.8]} 36. Kf2 {[%clk
0:00:15.5]} 36... Kf5 {[%clk 0:00:19.4]} 37. Bxg7 {[%clk 0:00:15.2]} 1-0

[Event "Early-Titled-Tuesday-Blitz-July-09-2024"]
[Site "Chess.com"]
[Date "2024.07.09"]
[Round "7"]
[White "ninguno46"]
[Black "Alex_Banzea"]
[Result "1/2-1/2"]
[WhiteElo "2575"]
[BlackElo "2696"]
[TimeControl "180+1"]
[EndTime "9:19:43 PDT"]
[Termination "Game drawn by repetition"]

1. Nf3 {[%clk 0:03:00.9]} 1... Nf6 {[%clk 0:02:59.4]} 2. c4 {[%clk 0:03:00.7]}
2... g6 {[%clk 0:02:59.8]} 3. Nc3 {[%clk 0:03:00.5]} 3... Bg7 {[%clk 0:03:00.5]}
4. e4 {[%clk 0:03:00.5]} 4... d6 {[%clk 0:03:01.2]} 5. d4 {[%clk 0:03:00.8]}
5... O-O {[%clk 0:03:01.8]} 6. Be2 {[%clk 0:03:01.2]} 6... Qe8 {[%clk
0:03:02.5]} 7. O-O {[%clk 0:03:00.7]} 7... e5 {[%clk 0:03:03.2]} 8. dxe5 {[%clk
0:02:54.8]} 8... dxe5 {[%clk 0:03:04.1]} 9. b4 {[%clk 0:02:55.1]} 9... Bg4
{[%clk 0:02:57.6]} 10. Nd5 {[%clk 0:02:47.3]} 10... Nxe4 {[%clk 0:01:29.6]} 11.
Nxc7 {[%clk 0:02:45.3]} 11... Qc6 {[%clk 0:01:27.3]} 12. Nxa8 {[%clk 0:02:39]}
12... Nc3 {[%clk 0:01:27.4]} 13. Qc2 {[%clk 0:02:32.8]} 13... Nxe2+ {[%clk
0:01:27.7]} 14. Qxe2 {[%clk 0:02:32.6]} 14... e4 {[%clk 0:01:28.3]} 15. Ne5
{[%clk 0:01:01.1]} 15... Bxe5 {[%clk 0:01:24.1]} 16. Qxg4 {[%clk 0:00:59.9]}
16... Bxa1 {[%clk 0:01:24.8]} 17. b5 {[%clk 0:00:49]} 17... Qxc4 {[%clk
0:01:17.3]} 18. Ba3 {[%clk 0:00:41.3]} 18... Re8 {[%clk 0:00:31.5]} 19. Rxa1
{[%clk 0:00:38]} 19... Qc3 {[%clk 0:00:32]} 20. Rd1 {[%clk 0:00:25.3]} 20...
Qxa3 {[%clk 0:00:31.2]} 21. Nc7 {[%clk 0:00:24.8]} 21... f5 {[%clk 0:00:24.6]}
22. Qe2 {[%clk 0:00:18.9]} 22... Re7 {[%clk 0:00:10.8]} 23. Qc4+ {[%clk
0:00:16.8]} 23... Kg7 {[%clk 0:00:11]} 24. Nd5 {[%clk 0:00:07.8]} 24... Rf7
{[%clk 0:00:07.5]} 25. Qd4+ {[%clk 0:00:07.6]} 25... Kh6 {[%clk 0:00:02.8]} 26.
Qd2+ {[%clk 0:00:05]} 26... Kg7 {[%clk 0:00:02.2]} 27. Qd4+ {[%clk 0:00:04.4]}
27... Kh6 {[%clk 0:00:02.3]} 28. Qd2+ {[%clk 0:00:04.4]} 28... Kg7 {[%clk
0:00:02.3]} 29. Qd4+ {[%clk 0:00:04.6]} 1/2-1/2

[Event "Early-Titled-Tuesday-Blitz-July-09-2024"]
[Site "Chess.com"]
[Date "2024.07.09"]
[Round "7"]
[White "Sofia_Blokhin"]
[Black "sanbruh"]
[Result "0-1"]
[WhiteElo "2187"]
[BlackElo "2352"]
[TimeControl "180+1"]
[EndTime "9:19:45 PDT"]
[Termination "sanbruh won on time"]

1. d4 {[%clk 0:03:00.9]} 1... d6 {[%clk 0:02:59.6]} 2. e4 {[%clk 0:03:00.4]}
2... Nf6 {[%clk 0:02:59.8]} 3. Nc3 {[%clk 0:03:00.2]} 3... g6 {[%clk 0:03:00.1]}
4. f3 {[%clk 0:03:00.5]} 4... Bg7 {[%clk 0:03:00]} 5. Be3 {[%clk 0:03:00.4]}
5... O-O {[%clk 0:03:00.3]} 6. Qd2 {[%clk 0:03:00.6]} 6... Re8 {[%clk
0:03:00.6]} 7. O-O-O {[%clk 0:03:00.5]} 7... Nbd7 {[%clk 0:02:55.7]} 8. g4
{[%clk 0:02:57.6]} 8... c5 {[%clk 0:02:53.9]} 9. dxc5 {[%clk 0:02:54.9]} 9...
dxc5 {[%clk 0:02:53.9]} 10. Bxc5 {[%clk 0:02:51.4]} 10... Qa5 {[%clk 0:02:51.5]}
11. Be3 {[%clk 0:02:36.6]} 11... a6 {[%clk 0:02:51.4]} 12. Kb1 {[%clk
0:02:30.1]} 12... b5 {[%clk 0:02:51.4]} 13. a3 {[%clk 0:02:28.9]} 13... Qc7
{[%clk 0:02:49.6]} 14. h4 {[%clk 0:02:22.6]} 14... Nb6 {[%clk 0:02:47.3]} 15. h5
{[%clk 0:02:16.5]} 15... Nc4 {[%clk 0:02:40.6]} 16. Bxc4 {[%clk 0:02:15.6]}
16... Qxc4 {[%clk 0:02:41.5]} 17. hxg6 {[%clk 0:02:12.2]} 17... hxg6 {[%clk
0:02:39]} 18. e5 {[%clk 0:02:09.5]} 18... Nd7 {[%clk 0:02:31.8]} 19. f4 {[%clk
0:02:08]} 19... Rb8 {[%clk 0:02:24.6]} 20. Nd5 {[%clk 0:01:54.7]} 20... Bb7
{[%clk 0:02:14.2]} 21. Rh2 {[%clk 0:01:36.7]} 21... Rbd8 {[%clk 0:01:32.4]} 22.
b3 {[%clk 0:00:56.3]} 22... Qe4 {[%clk 0:01:24.7]} 23. Nc3 {[%clk 0:00:51.6]}
23... Qc6 {[%clk 0:01:21.2]} 24. Qe1 {[%clk 0:00:46.2]} 24... Rc8 {[%clk
0:01:14.2]} 25. Bd4 {[%clk 0:00:42.5]} 25... e6 {[%clk 0:01:04.1]} 26. Nh3
{[%clk 0:00:34.8]} 26... Qf3 {[%clk 0:00:58.3]} 27. Ng5 {[%clk 0:00:29.6]} 27...
Qxg4 {[%clk 0:00:55.9]} 28. Rd3 {[%clk 0:00:16.2]} 28... Nc5 {[%clk 0:00:45.7]}
29. Rdh3 {[%clk 0:00:12.1]} 29... Red8 {[%clk 0:00:40.1]} 30. Bxc5 {[%clk
0:00:06]} 30... Rxc5 {[%clk 0:00:41]} 31. Nce4 {[%clk 0:00:06.2]} 31... Rc7
{[%clk 0:00:18.7]} 0-1